Cogmind - Beta 16 @@@ ROGUE MODE // 2025.11.02 @ 18:08:09 Player: FAQ Result: Destroyed by S-27 Virus with Autogun Performance ------------- Evolutions (3) 1500 Regions Visited (8) 1600 Robots Destroyed (70) 350 Value Destroyed (3179) 3179 Prototype IDs (18) 360 Alien Tech Used (0) 0 Bonus (2365) 2365 TOTAL SCORE: 9354 Bonus ------- High Alert Combat Kills 6 Follower Combat Kills 159 Entered Garrisons 400 Used RIF Installer 1500 Aligned with FarCom 300 Cogmind --------- Core Integrity 0/700 Matter 102/300 Energy 100/100 System Corruption 0% Temperature Cool (0) Movement Core (700) Ox13 Location -7/Garrison Parts ------- > --- POWER (1) -------- (None) > --- PROPULSION (4) --- (None) > --- UTILITY (5) ------ High-capacity Storage Unit Modified TNC > --- WEAPON (3) ------- (None) > --- INVENTORY (20) --- Light Ion Engine Light Treads Light Treads Medium Treads Large Storage Unit Sensor Array Experimental Sensor Array Hacking Suite Relay Coupler [NC] (30) Relay Coupler [NC] (31) Relay Coupler [Swarmer] (34) Relay Coupler [Grunt] (23) Heavy Assault Rifle Heavy Assault Rifle Flak Gun Gauss Cannon Improved Datajack Remote Datajack Chainsword Chainsword Peak State ------------ > --- POWER ------------ Micro Nuclear Core > --- PROPULSION ------- Light Treads Medium Treads Medium Treads Medium Treads > --- UTILITY ---------- High-capacity Storage Unit Experimental Sensor Array Modified TNC Light Armor Plating Relay Coupler [Hunter] > --- WEAPON ----------- Gauss Rifle Gauss Rifle Gauss Cannon > --- INVENTORY -------- Light Ion Engine Medium Treads Large Storage Unit Sensor Array Improved Targeting Computer Light Armor Plating Hacking Suite Relay Coupler [NC] Relay Coupler [NC] Relay Coupler [Grunt] Relay Coupler [Hunter] Shock Rifle Small Laser Light Assault Rifle Heavy Assault Rifle Heavy Assault Rifle Improved Datajack Remote Datajack Chainsword Chainsword [Rating: 55] Favorites ----------- Power Ion Engine Engine Ion Engine Power Core Micro Nuclear Core Propulsion Light Treads Treads Light Treads Utility Modified TNC Device Experimental Sensor Array Storage High-capacity Storage Unit Processor Modified TNC Hackware Relay Coupler [Hunter] Protection Light Armor Plating Weapon Gauss Rifle Energy Gun Small Laser Ballistic Gun Gauss Rifle Ballistic Cannon Gauss Cannon Launcher Grenade Launcher Special Weapon Remote Datajack Special Melee Weapon Datajack Build | -11 -10 -10 -10 -9 -8 -8 -7 -7 ------- Run | Yrd Mat Min Exi Min Mat Gar Fac Gar Slots Evolved 6 | . . . . . 4 . 2 . Power . | . . . . . . . . . Propulsion 2 | . . . . . 2 . . . Utility 3 | . . . . . 2 . 1 . Weapon 1 | . . . . . . . 1 . Parts Attached 61 | 6 2 1 5 . 24 11 10 2 Power 6 | 1 . . . . 3 1 1 . Engine 5 | 1 . . . . 3 1 . . Core 1 | . . . . . . . 1 . Reactor . | . . . . . . . . . Propulsion 17 | 2 . . . . 7 3 5 . Treads 17 | 2 . . . . 7 3 5 . Leg . | . . . . . . . . . Wheel . | . . . . . . . . . Hover . | . . . . . . . . . Flight . | . . . . . . . . . Utility 17 | 1 2 . 2 . 6 2 3 1 Device 4 | . 1 . . . 2 1 . . Storage 3 | 1 1 . 1 . . . . . Processor 2 | . . . 1 . . . 1 . Hackware 3 | . . . . . . . 2 1 Protection 5 | . . . . . 4 1 . . Artifact . | . . . . . . . . . Weapon 21 | 2 . 1 3 . 8 5 1 1 Energy Gun 9 | 2 . . 2 . 4 1 . . Energy Cannon . | . . . . . . . . . Ballistic Gun 6 | . . . . . 3 3 . . Ballistic Cannon 1 | . . . . . . . 1 . Launcher 2 | . . 1 . . 1 . . . Special Weapon 1 | . . . . . . . . 1 Impact Weapon . | . . . . . . . . . Slashing Weapon . | . . . . . . . . . Piercing Weapon . | . . . . . . . . . Special Melee Weapon 2 | . . . 1 . . 1 . . Unidentified Prototypes 3 | . . . 1 . 1 1 . . Parts Lost 37 | . . . . . 18 7 1 11 Power 5 | . . . . . 3 1 . 1 Propulsion 13 | . . . . . 6 2 1 4 Utility 9 | . . . . . 4 1 . 4 Weapon 10 | . . . . . 5 3 . 2 Highest Loss Streak 10 | . . . . . 10 3 1 10 To Critical Strikes . | . . . . . . . . . Average Backups 14 | 1 6 9 9 10 14 19 19 19 Power 1 | . 1 2 1 2 2 1 1 1 Propulsion . | . . . . . . 1 1 3 Utility 5 | . . 1 2 3 5 10 9 8 Weapon 4 | . 3 4 4 4 5 5 6 5 Tool/Special . | . . . . . . . . . Unused Backups 16 | . . 1 . . 1 . 1 13 Power 1 | . . . . . . . 1 . Propulsion . | . . . . . . . . . Utility 9 | . . . . . . . . 9 Weapon 6 | . . 1 . . 1 . . 4 Tool/Special . | . . . . . . . . . Average Slot Usage (%) 90 | . 98 100 99 100 75 87 97 92 Engine 8 | . 14 14 14 14 6 9 2 . Core 1 | . . . . . . . 4 6 Treads 25 | . 28 28 28 28 20 26 28 28 Device 7 | . 12 14 4 . 6 9 6 . Storage 10 | . 14 14 14 14 9 9 7 7 Processor 8 | . . . 9 14 9 9 8 14 Hackware 1 | . . . . . . . 6 7 Protection 4 | . . . . . 7 6 7 2 Energy Gun 11 | . 28 25 18 26 6 6 . . Ballistic Gun 7 | . . . . . 9 10 13 14 Ballistic Cannon 1 | . . . . . . . 6 5 Special Melee Weapon 1 | . . . 7 . . . 1 . Peak Build Rating 55 | 6 8 9 15 15 24 31 55 51 Average Rating 23 | 5 7 8 12 15 19 28 45 47 On Entrance 17 | . 6 8 9 15 15 23 31 49 Avg Prop Armor Cover (%) . | . . . . . . . . . Naked Turns . | . . . . . . . . . Heaviest Build 65 | 13 19 20 49 51 57 55 65 64 Greatest Support 104 | 40 40 40 40 40 80 82 104 104 Greatest Overweight (x) 14 | 1 . . 5 1 14 1 . 1 Average Overweight (x) . | . . . . 1 1 . . . Largest Inventory Capacity 20 | 8 10 10 20 20 20 20 20 20 Average Capacity 17 | 7 9 10 11 20 20 20 20 20 Most Carried 20 | 2 9 10 10 11 17 20 20 20 Average Carried 14 | 1 6 9 9 10 14 19 19 19 Final Capacity 20 | 8 10 10 20 20 20 20 20 20 Final Carried 20 | 2 9 10 10 11 16 20 20 20 Class Distribution -------------------- 52% | Mutant 22% | Bothacker-Skirmisher 14% | Scavenger-Mutant 6% | Scavenger-Skirmisher 3% | Bothacker-Assassin Dominant Class ---------------- Mutant | -10/Materials Mutant | -10/Mines Mutant | -10/Exiles Mutant | -9/Mines Mutant | -8/Materials Bothacker-Skirmisher | -8/Garrison Bothacker-Skirmisher | -7/Factory Bothacker-Skirmisher | -7/Garrison Resources | -11 -10 -10 -10 -9 -8 -8 -7 -7 ----------- Run | Yrd Mat Min Exi Min Mat Gar Fac Gar Matter Collected 2053 | 260 20 31 . 22 1062 252 304 102 Remotely . | . . . . . . . . . Salvage Created 2621 | 126 146 47 . 86 1378 359 329 150 Parts 147 | 5 14 2 . 5 74 19 18 10 Haulers Intercepted . | . . . . . . . . . Recyclers Shooed 1 | . . . . 1 . . . . Parts Field Recycled . | . . . . . . . . . Retrieved Matter . | . . . . . . . . . Parts Self-Destructed . | . . . . . . . . . Prevented . | . . . . . . . . . Parts Restored . | . . . . . . . . . Kills | -11 -10 -10 -10 -9 -8 -8 -7 -7 ------- Run | Yrd Mat Min Exi Min Mat Gar Fac Gar Combat Hostiles Destroyed 57 | . 4 2 . 3 27 7 7 7 Guns 46 | . 4 1 . 1 25 7 3 5 Cannons 6 | . . . . . . . 4 2 AOE 5 | . . 1 . 2 2 . . . Classes Destroyed 12 | 2 4 . . 2 2 1 1 . Worker 4 | 2 . . . . 1 . 1 . Builder 1 | . . . . 1 . . . . Recycler 4 | 1 . . . . 2 . 1 . Operator 2 | . 1 . . . 1 . . . Watcher 2 | . 1 . . . 1 . . . Swarmer 16 | . 2 . . . 5 . 2 7 Grunt 22 | . 2 2 . 2 13 2 1 . Brawler 2 | . . . . . 1 1 . . Duelist 1 | . . . . 1 . . . . Sentry 11 | . . . . . 8 2 1 . Hunter 3 | . . . . . . 2 1 . Programmer 2 | . . . . . . . 2 . Best Kill Streak 8 | 2 3 2 . 4 8 3 3 4 Combat Bots Only 8 | . 2 2 . 3 8 3 2 4 Max Kills in Single Turn 2 | 1 1 1 . 1 2 1 1 1 Gunslinging 1 | . . . . . 1 . . . Exploded 1 | . . 1 . 1 1 . . . Melee . | . . . . . . . . . Uniques/NPCs Destroyed . | . . . . . . . . . Combat | -11 -10 -10 -10 -9 -8 -8 -7 -7 -------- Run | Yrd Mat Min Exi Min Mat Gar Fac Gar Hostile Shots Fired 582 | . 11 6 . 10 222 67 21 245 Missed 159 | . 1 1 . 4 57 16 7 73 Hits 423 | . 10 5 . 6 165 51 14 172 Melee 8 | . . . . . 5 3 . . Projectile 415 | . 10 5 . 6 160 48 14 172 Critical Strikes 9 | . . . . . 1 5 1 2 Damage Taken 5627 | . 133 87 . 118 2372 749 223 1945 Core 1243 | . 15 21 . . 420 82 32 673 Absorbed by Shields . | . . . . . . . . . Core Remaining (%) 64 | 100 . . . 85 . 8 . . Volleys Fired 228 | 8 17 4 . 13 105 44 20 17 Largest 3 | 2 2 2 . 2 2 2 3 3 Hottest 119 | 90 90 70 . 75 90 119 96 96 Shots Fired 466 | 16 34 8 . 20 195 88 60 45 Gun 415 | 16 34 4 . 15 188 88 40 30 Cannon 34 | . . . . . . . 20 14 Launcher 16 | . . 4 . 5 7 . . . Special 1 | . . . . . . . . 1 Kinetic 280 | . . . . . 146 30 60 44 Thermal 124 | 16 34 4 . 1 26 43 . . Explosive 16 | . . 4 . 5 7 . . . Electromagnetic 45 | . . . . 14 16 15 . . Robot Hit Streak 24 | 7 6 4 . 9 24 11 6 4 Robot Miss Streak 6 | 2 4 3 . 3 4 3 6 4 Penetration Max . | . . . . . . . . . Secondary Targets 7 | . . . . . 5 2 . . Max Gunslinging Chain 1 | . . . . . 1 1 . . Shots Hit Robots 293 | 10 16 5 4 9 153 44 35 17 Core Hits 130 | 4 11 5 . 9 62 15 14 10 Critical Kills 2 | . . . . . 1 . 1 . Critical Parts Destroyed 1 | . . . . . . . 1 . Critical Strikes 11 | . . . . 1 3 2 5 . Burn 2 | . . . . . . 2 . . Destroy 3 | . . . . . 1 . 2 . Blast 3 | . . . . . . . 3 . Corrupt 3 | . . . . 1 2 . . . Melee Attacks 15 | . . . 4 . . 9 2 . Impact . | . . . . . . . . . Slashing . | . . . . . . . . . Piercing . | . . . . . . . . . Sneak Attacks 15 | . . . 4 . . 9 2 . Combat Hostiles . | . . . . . . . . . Follow-up Attacks . | . . . . . . . . . Damage Inflicted 5530 | 115 204 187 . 349 2878 561 781 455 Guns 4256 | 115 204 21 . 89 2510 561 495 261 Cannons 452 | . . . . . . . 286 166 Explosions 794 | . . 166 . 260 368 . . . Melee . | . . . . . . . . . Ramming 28 | . . . . . . . . 28 Kinetic 3413 | . . . . . 2055 150 781 427 Thermal 1024 | 115 204 21 . 27 346 311 . . Explosive 661 | . . 166 . 233 262 . . . Electromagnetic 404 | . . . . 89 215 100 . . Impact . | . . . . . . . . . Slashing . | . . . . . . . . . Piercing . | . . . . . . . . . Highest Corruption 6 | . 3 3 3 3 6 6 . . Average Corruption 4 | . 2 3 3 3 4 6 . . Corruption Purged . | . . . . . . . . . Corruption Blocked . | . . . . . . . . . Effects 99 | . . 9 14 11 31 34 . . Message Errors 28 | . . 3 3 6 6 10 . . Matter Fused 20 | . . 2 2 2 6 8 . . Heat Flow Errors 11 | . . 2 3 . 4 2 . . Energy Discharges 9 | . . 2 1 1 3 2 . . Data Loss (minor) 9 | . . . 4 . 3 2 . . Data Loss (major) 7 | . . . . . 4 3 . . Misfires 7 | . . . . 2 1 4 . . Alerts 2 | . . . 1 . 1 . . . Weapon Failures 6 | . . . . . 3 3 . . Overload Shots . | . . . . . . . . . Overflow Damage 47 | . . . . . 42 . 5 . Projectiles 5 | . . . . . . . 5 . Explosions 42 | . . . . . 42 . . . Melee . | . . . . . . . . . Knockbacks 6 | . . . . . . . 4 2 Impact . | . . . . . . . . . Kinetic 6 | . . . . . . . 4 2 Secondary . | . . . . . . . . . Self-Inflicted Damage 246 | . . 8 . 52 186 . . . Shots 10 | . . 1 . 2 7 . . . Rammed 7 | . . . . . . . . 7 Targets Rammed 7 | . . . . . . . . 7 Kicked . | . . . . . . . . . Crushed . | . . . . . . . . . Highest Temperature 262 | 150 120 176 197 143 253 262 150 93 Average Temperature 53 | 58 44 69 80 56 42 66 45 40 Received Heat Transfer 1671 | . 30 45 . 36 801 270 63 426 Siege Activations . | . . . . . . . . . Martial Activations . | . . . . . . . . . Shielding Activations . | . . . . . . . . . Robots Disrupted . | . . . . . . . . . Combat Hostiles . | . . . . . . . . . Robots Corrupted . | . . . . . . . . . Combat Hostiles . | . . . . . . . . . Parts Fried 1 | . . . . . 1 . . . Impact Corruptions . | . . . . . . . . . Robots Melted . | . . . . . . . . . Combat Hostiles . | . . . . . . . . . Parts Melted 1 | . . . . . 1 . . . Heat Transferred 2513 | 310 545 50 . 50 633 925 . . Parts Sabotaged . | . . . . . . . . . Parts Stolen . | . . . . . . . . . Parts Stripped . | . . . . . . . . . Power Chain Reactions 3 | . . . . 1 2 . . . Alert | -11 -10 -10 -10 -9 -8 -8 -7 -7 ------- Run | Yrd Mat Min Exi Min Mat Gar Fac Gar Maximum Alert Level 2 | . . . . . 1 2 1 2 Low Security (%) 66 | 100 100 100 . 100 97 9 25 41 Level 1 28 | . . . . . 2 70 74 42 Level 2 4 | . . . . . . 20 . 15 Level 3 . | . . . . . . . . . Level 4 . | . . . . . . . . . Level 5 . | . . . . . . . . . High Security . | . . . . . . . . . Max Security . | . . . . . . . . . Peak Influence 622 | 10 105 70 . 99 275 622 326 437 Initial 326 | . 6 25 . . 31 178 326 167 Average 152 | . 20 9 . 8 77 384 230 267 Influence Increases 2433 | 15 187 70 . 107 823 554 367 310 Destroy 0b10 Robot/C 1380 | . 80 40 . 60 540 340 180 140 Destroy 0b10 Robot/NC 65 | 15 10 . . 5 25 . 10 . Destroy Leader 264 | . 32 10 . 10 132 20 50 10 Allied During Kill 51 | . . . . . . 44 7 . Successful Hack 26 | . 20 . . . 6 . . . Disable Machine 120 | . . . . . 45 . 75 . Anti-Garrison Action 200 | . . . . . . 100 . 100 Destroy Structure 177 | . . 20 . 32 45 50 30 . Lose Combat Pursuer 150 | . 45 . . . 30 . 15 60 Influence Decreases 2086 | 5 132 97 38 24 631 207 750 202 Entered New Map 599 | . 4 40 38 . 52 97 296 72 Time Decay 1027 | 5 128 57 . 24 409 . 404 . Lost Part 360 | . . . . . 170 70 10 110 Lost Ally 100 | . . . . . . 40 40 20 Squads Dispatched 9 | . 2 . . . 5 . 2 . Investigation 1 | . . . . . 1 . . . Extermination 2 | . . . . . . . 2 . Reinforcement 2 | . 2 . . . . . . . Assault . | . . . . . . . . . Garrison 4 | . . . . . 4 . . . Intercept . | . . . . . . . . . Searches Triggered . | . . . . . . . . . Construction Impeded . | . . . . . . . . . Haulers Reinforced . | . . . . . . . . . Active Scanning Responses . | . . . . . . . . . Cargo Convoy Interrupts . | . . . . . . . . . Stealth | -11 -10 -10 -10 -9 -8 -8 -7 -7 --------- Run | Yrd Mat Min Exi Min Mat Gar Fac Gar Distress Signals 4 | . 2 . . . 2 . . . Communications Jammed . | . . . . . . . . . Distress Signals . | . . . . . . . . . Times Spotted 93 | . 10 2 . 3 36 13 11 18 Peak Tracking Total 8 | . 4 2 . 3 7 8 3 8 Tactical Retreats 6 | . 2 . . . 1 . 1 2 Traps | -11 -10 -10 -10 -9 -8 -8 -7 -7 ------- Run | Yrd Mat Min Exi Min Mat Gar Fac Gar Traps Triggered 5 | . 3 . . . 1 1 . . Indirectly . | . . . . . . . . . Trap Hack Attempts . | . . . . . . . . . Triggered . | . . . . . . . . . Disarmed . | . . . . . . . . . Reprogrammed . | . . . . . . . . . Reused . | . . . . . . . . . Traps Extracted . | . . . . . . . . . Installed . | . . . . . . . . . Triggered . | . . . . . . . . . Machines | -11 -10 -10 -10 -9 -8 -8 -7 -7 ---------- Run | Yrd Mat Min Exi Min Mat Gar Fac Gar Machines Disabled 12 | . . . . . 3 2 5 2 Max in Single Turn 4 | . . . . . 2 1 4 1 Garrison Relay 4 | . . . . . . 2 . 2 Machines Repaired . | . . . . . . . . . Machines Dismantled . | . . . . . . . . . Machines Sabotaged . | . . . . . . . . . Overloaded Fab Kills . | . . . . . . . . . Hacking | -11 -10 -10 -10 -9 -8 -8 -7 -7 --------- Run | Yrd Mat Min Exi Min Mat Gar Fac Gar Machines Accessed 11 | . 4 . . . 4 1 2 . Terminals 6 | . 4 . . . 1 1 . . Fabricators 1 | . . . . . . . 1 . Repair Stations . | . . . . . . . . . Recycling Units 1 | . . . . . 1 . . . Scanalyzers 1 | . . . . . 1 . . . Garrison Access 2 | . . . . . 1 . 1 . Total Hacks 25 | . 8 . . . 11 1 5 . Successful 17 | . 6 . . . 7 1 3 . Failed 8 | . 2 . . . 4 . 2 . Catastrophic 1 | . . . . . 1 . . . Database Lockouts . | . . . . . . . . . Manual 4 | . 2 . 1 . 1 . . . Terminals 10 | . 8 . . . 1 1 . . Fabricators 3 | . . . . . . . 3 . Repair Stations . | . . . . . . . . . Recycling Units 3 | . . . . . 3 . . . Scanalyzers 4 | . . . . . 4 . . . Garrison Access 5 | . . . . . 3 . 2 . Terminal Hacks 6 | . 5 . . . . 1 . . Robot Analysis 1 | . 1 . . . . . . . Prototype ID Bank 1 | . 1 . . . . . . . Branch Access Points 1 | . 1 . . . . . . . Emergency Access Points 1 | . . . . . . 1 . . Alert Level 1 | . 1 . . . . . . . Zone Layout 1 | . 1 . . . . . . . Fabricator Hacks 1 | . . . . . . . 1 . Build 1 | . . . . . . . 1 . Repair Station Hacks . | . . . . . . . . . Recycling Unit Hacks 2 | . . . . . 2 . . . Process 1 | . . . . . 1 . . . Retrieve Matter 1 | . . . . . 1 . . . Scanalyzer 4 | . . . . . 4 . . . Insert Component 1 | . . . . . 1 . . . Analyze 1 | . . . . . 1 . . . Retrieve Study 2 | . . . . . 2 . . . Garrison Access Hacks 3 | . . . . . 1 . 2 . Unlock Access 2 | . . . . . 1 . 1 . Coupler Status 1 | . . . . . . . 1 . Unauthorized Hacks 1 | . 1 . . . . . . . Terminals 1 | . 1 . . . . . . . Botnet 1 | . 1 . . . . . . . Fabricators . | . . . . . . . . . Repair Stations . | . . . . . . . . . Recycling Units . | . . . . . . . . . Scanalyzers . | . . . . . . . . . Garrison Access . | . . . . . . . . . Data Cores Recovered 1 | . . . . . 1 . . . Used . | . . . . . . . . . Hacking Detections 8 | . 1 . . . 4 1 2 . Full Trace Events 2 | . . . . . 2 . . . Feedback Events . | . . . . . . . . . Feedback Blocked . | . . . . . . . . . Robot Schematics Acquired . | . . . . . . . . . Robots Built . | . . . . . . . . . Authchips . | . . . . . . . . . Time . | . . . . . . . . . Total Robot Build Rating . | . . . . . . . . . Part Schematics Acquired 1 | . . . . . 1 . . . Parts Built 2 | . . . . . . . 2 . Authchips . | . . . . . . . . . Time 84 | . . . . . . . 84 . Total Part Build Rating 8 | . . . . . . . 8 . Part Studies Acquired 2 | . . . . . 2 . . . Parts Repaired . | . . . . . . . . . Time . | . . . . . . . . . Parts Recycled . | . . . . . . . . . Recycled Matter 219 | . . . . . 219 . . . Retrieved Matter . | . . . . . . . . . Retrieved Components . | . . . . . . . . . Parts Scanalyzed 1 | . . . . . 1 . . . Part Schematics Acquired 1 | . . . . . 1 . . . Parts Damaged . | . . . . . . . . . Bothacking | -11 -10 -10 -10 -9 -8 -8 -7 -7 ------------ Run | Yrd Mat Min Exi Min Mat Gar Fac Gar Used RIF Installer 3 | . . . . . . 1 . 2 Robot Detection 1 | . . . . . . . . 1 Program Shield 1 | . . . . . . . . 1 Robots Hacked 6 | . . . 4 . . . 1 1 Non-combat 3 | . . . 2 . . . 1 . Combat 3 | . . . 2 . . . . 1 Robot Hacks Applied 7 | . . . 4 . . . 2 1 parse_system 4 | . . . 4 . . . . . locate_stockpiles 1 | . . . . . . . 1 . link_fov 1 | . . . . . . . 1 . formatsys_high 1 | . . . . . . . . 1 Relay Couplers Released 20 | . . . . . . 10 . 10 Machine Destruction 17 | . . . . . . 7 . 10 Programmers 3 | . . . . . . 3 . . Attached 3 | . . . . . . . 2 1 Fabnet Peak Effective % . | . . . . . . . . . Robots Rewired 4 | . . . . . . 4 . . Allies Hacked . | . . . . . . . . . Hacks Repelled . | . . . . . . . . . Allies | -11 -10 -10 -10 -9 -8 -8 -7 -7 -------- Run | Yrd Mat Min Exi Min Mat Gar Fac Gar Total Allies 5 | . . . . . . 4 . 1 Largest Group 4 | . . . . . . 4 2 1 Highest-Rated Group 84 | . . . . . . 84 42 16 Highest-Rated Ally 21 | . . . . . . 21 21 16 Total Orders . | . . . . . . . . . Ally Attacks 48 | . . . . . . 38 8 2 Total Damage 905 | . . . . . . 712 163 30 Kills 12 | . . . . . . 10 2 . Allies Corrupted . | . . . . . . . . . Allies Melted . | . . . . . . . . . Intel | -11 -10 -10 -10 -9 -8 -8 -7 -7 ------- Run | Yrd Mat Min Exi Min Mat Gar Fac Gar Active Infowar (turns) 6850 | . 636 549 711 545 1824 1170 961 454 Sensors 3124 | . 636 549 220 . . 891 828 . T.N.C. 5445 | . . . 491 545 1824 1170 961 454 Robot Analysis Total 1 | . 1 . . . . . . . Derelict Logs Recovered 3 | . . 2 . 1 . . . . Drone Launches . | . . . . . . . . . Drone Recoveries . | . . . . . . . . . Exploration | -11 -10 -10 -10 -9 -8 -8 -7 -7 ------------- Run | Yrd Mat Min Exi Min Mat Gar Fac Gar Turns Passed 7020 | 117 684 549 716 545 1824 1170 961 454 Spaces Moved 3286 | 56 368 334 405 214 679 551 451 228 Core 21 | 7 . . 1 . 13 . . . Treads 3265 | 49 368 334 404 214 666 551 451 228 Legs . | . . . . . . . . . Wheels . | . . . . . . . . . Hover . | . . . . . . . . . Flight . | . . . . . . . . . Fastest Speed 50 | 50 160 160 160 240 155 155 160 160 Average Speed 179 | 147 160 160 170 240 210 174 160 160 Slowest Speed 750 | 160 160 160 300 240 750 200 160 240 Overloaded Moves . | . . . . . . . . . Propulsion Burnouts . | . . . . . . . . . Robots Hopped . | . . . . . . . . . Potential Cave-ins . | . . . . . . . . . Cave-ins Triggered . | . . . . . . . . . Exploration Rate (%) 42 | 5 60 68 86 33 44 46 11 27 Regions Visited 8 Branch Regions 3 Pre-discovered Areas 1 | . . 1 . . . . . . Known Exits Taken 3 | . 1 . . . 1 . 1 . Unknown Exits Taken 4 | 1 . 1 1 1 . . . . Scrap Searched 1 | . . 1 . . . . . . Spaces Dug 9 | . . . . 9 . . . . Terrain Destroyed 135 | . . 24 . 43 39 . 29 . Melee . | . . . . . . . . . Projectile 6 | . . . . . . . 6 . AOE 129 | . . 24 . 43 39 . 23 . Terrain Rammed . | . . . . . . . . . Walls Destroyed . | . . . . . . . . . Machines Disabled . | . . . . . . . . . Actions | -11 -10 -10 -10 -9 -8 -8 -7 -7 --------- Run | Yrd Mat Min Exi Min Mat Gar Fac Gar Total 3997 | 72 429 343 433 228 899 667 651 275 Wait 288 | 1 36 . . . 68 27 145 11 Move 3277 | 55 367 333 404 213 678 549 450 228 Hop . | . . . . . . . . . Pick Up 46 | 2 6 3 5 1 11 6 8 4 Fast Attach 32 | 6 2 . 2 . 17 3 2 . Attach 29 | . . 1 4 . 9 6 7 2 Detach 17 | . 1 . 4 . 6 1 3 2 Swap 16 | . . . 2 1 1 7 5 . Drop 28 | . . 2 8 . 4 1 9 4 Fire 228 | 8 17 4 . 13 105 44 20 17 Melee 15 | . . . 4 . . 9 2 . Ram 1 | . . . . . . . . 1 Kick . | . . . . . . . . . Crush 6 | . . . . . . . . 6 Escape Stasis 2 | . . . . . . 2 . . Rewire 12 | . . . . . . 12 . . Trap . | . . . . . . . . . Miscellaneous . | . . . . . . . . . Route ------- -11/Scrapyard -10/Materials (discovered 2 exits: [*Mat] / *Min) -10/Mines (discovered 2 exits: *Exi / [*Sub]) -10/Exiles -9/Mines -8/Materials (discovered 3 exits: *Fac x2 / Gar) -8/Garrison -7/Factory -7/Garrison History --------- Turn | Location | Event 3 | -11/Scrapyard | Discovered new exit (range 15) 118 | -11/Scrapyard | Entered Materials 301 | -10/Materials | Build established: Mutant 520 | -10/Materials | Discovered new exit (range 8) 687 | -10/Materials | Identified exit to Mines 802 | -10/Materials | Entered Mines 807 | -10/Mines | Learned location of Zion (-7) 813 | -10/Mines | Met a Derelict bent on vengeance 905 | -10/Mines | Found a damaged Exp. Sensor Array with a note attached 910 | -10/Mines | Found Prototype Device 972 | -10/Mines | Received a Rocket Launcher from a helpful Derelict 1180 | -10/Mines | Learned 4 Materials zone layouts 1313 | -10/Mines | Discovered new exit (range 10) 1343 | -10/Mines | Deemed a non-threat by the Exiles lab entrance 1345 | -10/Mines | Discovered new exit (range 5) 1351 | -10/Mines | Entered Exiles 1390 | -10/Exiles | Met 8R-AWN 1435 | -10/Exiles | Met EX-HEX 1483 | -10/Exiles | Met EX-BIN 1513 | -10/Exiles | Aligned with FarCom system 1515 | -10/Exiles | Given EX-Vault access code 1555 | -10/Exiles | Opened EX-Vault 1576 | -10/Exiles | Found Prototype Processor 1576 | -10/Exiles | Identified Modified TNC 1618 | -10/Exiles | Warned to stay clear of 0b10 Research branches 1668 | -10/Exiles | Met EX-DEC 1737 | -10/Exiles | Visited The Gauntlet 2040 | -10/Exiles | Discovered new exit (range 12) 2067 | -10/Exiles | Left Exiles lab with Modified TNC 2067 | -10/Exiles | Entered Mines 2252 | -9/Mines | Learned Materials terminal intel 2550 | -9/Mines | Discovered new exit (range 8) 2612 | -9/Mines | Entered Materials 2612 | -8/Materials | Evolved 4 slots: Propulsion x2, Utility x2 2613 | -8/Materials | Identified exit to Factory 2614 | -8/Materials | Loaded intel: 12 terminal locations 3224 | -8/Materials | Build established: Scavenger-Mutant 3433 | -8/Materials | Lost 3 parts (3n) 3458 | -8/Materials | Discovered exit to Factory (range 16) 3609 | -8/Materials | Garrison activated, responded to threat 3789 | -8/Materials | Core integrity fell below 50% 3819 | -8/Materials | Lost 10 parts (1p2n2u5w) 4042 | -8/Materials | Build established: Mutant 4435 | -8/Materials | Identified exit to Garrison 4436 | -8/Materials | Entered Garrison 4440 | -8/Garrison | Destroyed 8 combat bots 4474 | -8/Garrison | Triggered checkpoint 4519 | -8/Garrison | Lost 3 parts (1p2w) 4544 | -8/Garrison | Triggered checkpoint 4544 | -8/Garrison | Garrison Relay disabled 4622 | -8/Garrison | Triggered checkpoint 4645 | -8/Garrison | Garrison Relay disabled 4715 | -8/Garrison | Identified Exp. Sensor Array 4728 | -8/Garrison | Core integrity fell below 20% 4961 | -8/Garrison | Installed Relay Interface Framework 5090 | -8/Garrison | Lost 3 parts (2n1w) 5266 | -8/Garrison | Build established: Bothacker-Skirmisher 5364 | -8/Garrison | Triggered checkpoint 5381 | -8/Garrison | Triggered checkpoint 5444 | -8/Garrison | Triggered checkpoint 5565 | -8/Garrison | Discovered exit to Factory (range 12) 5606 | -8/Garrison | Entered Factory 5606 | -7/Factory | Accompanied by 2 allies 5606 | -7/Factory | Evolved 2 slots: Utility x1, Weapon x1 5809 | -7/Factory | Fabricated Chainsword (x2) 6565 | -7/Factory | Identified exit to Garrison 6567 | -7/Factory | Entered Garrison 6593 | -7/Garrison | Expanded RIF knowledge: Robot Detection 6670 | -7/Garrison | Expanded RIF knowledge: Program Shield 6743 | -7/Garrison | Triggered checkpoint 6786 | -7/Garrison | Garrison Relay disabled 6788 | -7/Garrison | Garrison Relay disabled 6936 | -7/Garrison | Triggered checkpoint 7014 | -7/Garrison | Core integrity fell below 50% 7018 | -7/Garrison | Core integrity fell below 20% 7021 | -7/Garrison | Destroyed by S-27 Virus with Autogun Last Messages --------------- 06996_ Slammed into Y-54 Guardian. 06998_ Gauss Rifle destroyed. 06998_ Slammed into Y-54 Guardian. 07000_ Med. Treads destroyed. 07003_ Slammed into S-27 Virus. 07006_ Relay Coupler [Hunter] destroyed. 07006_ Slammed into Y-54 Guardian. 07007_ Lgt. Treads+ destroyed. 07008_ Slammed into Y-54 Guardian. 07009_ Med. Treads destroyed. 07009_ S-27 Virus destroyed. 07009_ Acquired 29 matter. 07010_ Med. Treads destroyed. 07010_ Gauss Rifle destroyed. 07012_ Slammed into Y-54 Guardian. 07012_ Destabilizing: Core damaged (-7). 07012_ Mic. Nuclear Core destroyed. 07015_ Critical hit (Burn: +37). 07019_ Imp. Targeting Computer destroyed. [Achievement: Back For More] Map ----- +----------------------------------------------------+ | ????????????????????????????????????????? | | ?????##?????????????????????????????????? | | ????? ?????????????????????????????????? | | ?????#!#????????????????????????????????? | | ######+########################?????????? | | %= =%[ #?????????? | | *%[ #?????????? | | ###### ######### ########## #?????????? | | ?????# #??????# #???????# #?????????? | | ?????# #??????#" "#???????# #?????????? | | ?????# #??????#" "#???????# #?????????? | | ?????# ^#??????#" "#???????# #?????????? | | ?????#^ #??????#"""#???????# #?????????? | | ?????# #??????#####???????# #?????????? | | ?????# #??????????????????# #?????????? | | ?????# ##################?# #?????????? | | ?????# #?# #?????????? | | ?????# ### #?????????? | | ?????# g ## #?????????? | | ?????# ## #?????????? | | ?????# ##^ #?????????? | | ?????# ### #?????????? | | ?????# #?# #?????????? | | ?????# Ygg # # #?????????? | | ?????# #Y# #?????????? | | ?????# s*@ #?????????? | | ?????# = #?????????? | | ?????# s### #?????????? | | ?????# #?# #?????????? | | ?????# #?# #?????????? | | ?????# #?# #?????????? | | ?????# #?# #?????????? | | ?????# #?# #?????????? | | ?????# #?# #?????????? | | ?????# #?# #?????????? | | ?????#### ################?# #?????????? | | ???????## ##???????????????# #?????????? | | ???????#^ #?????????????### #?????????? | | ???????#" "#?????????????# [ #?????????? | | ???????#" "#?????????????#= #?????????? | | ???????#" "#?????????????# = #?????????? | | ???????#"""#?????????????### #?#######?? | | ???????#####???????????????# #?#"" ""#?? | | ???????????????????????????# ####!!!##?? | | ???????????????????????????# ^^! #?? | | ???????????????????????????# !! !#?? | | ???????????????????????????####### !!##?? | | ????????????????????????????????#""!""#?? | | ????????????????????????????????#######?? | | ????????????????????????????????????????? | +----------------------------------------------------+ Best States ------------- Heat Dissipation 41 Energy Generation 15 Energy Capacity 265 Matter Stores 300 Matter Capacity 300 Sight Range 16 Robot Scan Range 20 Terrain Scan Density 10 Armor Coverage 300 Evasion (%) 40 Targeting Accuracy 6 Recoil Reduction 4 Relay Coupler Types 2 Relay Coupler Value 43 Item Schematics ----------------- Hacking Suite | -8/Materials | Scanalyzed Robot Schematics ------------------ None Fabricated ------------ Chainsword | x2 | -7/Factory | Preloaded Repaired ---------- Nothing Studied --------- Minigun | -8/Materials | Hacked Lgt. Treads | -8/Materials | Hacked Alien Tech Used ----------------- None Achievements -------------- Analysis Probe Assimilation Complete Back For More Just What I Needed Challenges ------------ None Game ------ Seed DisruptionPiercingPerforator Manual? 0 Play Time 00:54:33 Cumulative 23.6 hours Start 2025.11.02 @ 17:05:51 End 2025.11.02 @ 18:08:09 Sessions 1 Manual Loads 0 Difficulty Rogue Special Mode None Game No. 50 Rogue 50 Adventurer 0 Explorer 0 Win Type - Total 0 Types 0/0/0/0/0/0/0/0/0/0 Lore% 16 Gallery% 23 Achievement% 19 Wizard Run 0 Options --------- Layout 0 ASCII 1 Keyboard 1 Movement Numpad Keybinds 0 Fullscreen 1 Font 18/VGA_Max Map View 76x50 Zoom Use 0% Tactical HUD 1 Map Filters NONE Filters NONE Steam 1 RUN: 3d5e81d8-f368-4b97-9570-a80d533d2e39